bitfinex/quotes_BTCUSD_20250225
["timestamp","ask_amount","ask_price","bid_price","bid_amount"]
[1740485612833,0.25,89583.0,89525.0,0.00184936]
[1740485612962,0.00849583,89542.0,89525.0,0.00184936]
[1740485613144,0.26751313,89588.0,89533.0,0.1]
[1740485613350,0.02675131,89587.0,89535.0,0.0791]
[1740485613762,0.27675131,89587.0,89535.0,0.0791]
[1740485614395,0.27675131,89587.0,89536.0,0.0488]
[1740485614595,0.00853921,89547.0,89536.0,0.0488]
[1740485614797,0.00853921,89547.0,89537.0,0.00184936]
[1740485615327,0.01752539,89574.0,89539.0,0.0791]
[1740485615525,0.01752539,89574.0,89540.0,0.08094936]
[1740485615961,0.00830145,89553.0,89540.0,0.08094936]
[1740485616370,0.01752539,89574.0,89544.0,0.0755]
[1740485616529,0.02980246,89588.0,89551.0,0.0755]
[1740485616854,0.02980246,89588.0,89552.0,0.1296]
[1740485617765,0.0085829,89567.0,89552.0,0.1296]
[1740485618743,0.00848709,89567.0,89552.0,0.1296]
[1740485620742,0.00848709,89567.0,89552.0,0.06973538]
[1740485621082,0.00848709,89567.0,89564.0,0.09042051]
[1740485621285,0.00848709,89567.0,89554.0,0.00184936]
[1740485623802,0.00848709,89567.0,89555.0,0.0491]
[1740485624766,0.00848709,89567.0,89556.0,0.00184936]
[1740485626990,0.00848709,89567.0,89557.0,0.0778]
[1740485629656,0.02980246,89588.0,89557.0,0.0778]
[1740485629859,0.02980246,89588.0,89558.0,0.00184936]
[1740485630990,0.02980246,89588.0,89519.0,0.19169256]
[1740485630991,0.02980246,89588.0,89581.0,0.09042051]
[1740485631246,0.02980246,89588.0,89583.0,0.0761]
[1740485631515,0.02980246,89588.0,89584.0,0.0761]
[1740485633493,0.02980246,89588.0,89584.0,0.07614]
[1740485633761,0.02980246,89588.0,89585.0,0.1]
[1740485634012,0.0157362,89661.0,89601.0,0.1761]
[1740485634013,0.0119,89647.0,89601.0,0.1761]
[1740485634254,0.00844247,89616.0,89601.0,0.2226]
[1740485634459,0.048,89653.0,89602.0,0.00184936]
[1740485634635,0.0083106,89618.0,89602.0,0.00184936]
[1740485635039,0.0083106,89618.0,89603.0,0.01212]
[1740485635239,0.0083106,89618.0,89604.0,0.00184936]
[1740485635766,0.02988861,89607.0,89604.0,0.00184936]
[1740485636115,0.02988861,89607.0,89605.0,0.09042051]
[1740485636327,0.02988861,89607.0,89606.0,0.09076936]
[1740485636525,0.02988861,89607.0,89606.0,0.07864936]
[1740485637072,0.02988861,89607.0,89606.0,0.0768]
[1740485637233,0.02988861,89607.0,89596.0,0.0768]
[1740485637435,0.02988861,89607.0,89605.0,4e-05]
[1740485637866,0.19739417,89632.0,89605.0,4e-05]
[1740485638072,0.00825691,89607.0,89605.0,4e-05]
[1740485638268,0.0083602,89609.0,89605.0,4e-05]
[1740485638890,0.22632327,89632.0,89605.0,4e-05]
[1740485638891,0.0008464,89607.0,89605.0,4e-05]
[1740485639102,0.0008464,89607.0,89606.0,0.08]
[1740485640454,0.0008464,89607.0,89605.0,4e-05]
[1740485640928,0.0008464,89607.0,89596.0,0.0818]
[1740485641489,0.0008464,89607.0,89586.0,0.0751]
[1740485642134,0.0008464,89607.0,89576.0,0.079]
[1740485642411,0.0527,89606.0,89567.0,0.0457]
[1740485642647,0.0527,89606.0,89565.0,0.00184936]
[1740485642648,0.00842051,89577.0,89565.0,0.00184936]
[1740485643389,0.00499999,89604.0,89569.0,0.09042051]
[1740485644139,0.00829034,89579.0,89565.0,0.00184936]
[1740485644368,0.00829034,89579.0,89567.0,0.1]
[1740485644597,0.00829034,89579.0,89565.0,0.00184936]
[1740485648630,0.077,89589.0,89565.0,0.00188936]
[1740485648858,0.077,89589.0,89565.0,4e-05]
[1740485649101,0.30595388,89588.0,89536.0,0.0456]
[1740485649306,0.25,89586.0,89538.0,0.1]
[1740485649713,0.25,89586.0,89543.0,0.09042051]
[1740485650281,0.25,89586.0,89565.0,0.0016918]
[1740485650481,0.48855677,89586.0,89565.0,0.0016918]
[1740485651093,0.48855677,89586.0,89543.0,0.09042051]
[1740485651292,0.0765,89565.0,89543.0,0.05675893]
[1740485651493,0.0765,89565.0,89529.0,0.01212]
[1740485651494,0.0765,89565.0,89529.0,0.30920351]
[1740485651699,0.0765,89565.0,89529.0,0.30120351]
[1740485652153,0.00835117,89530.0,89508.0,0.0454]
[1740485652649,0.25,89561.0,89508.0,0.0454]
[1740485652892,0.05506364,89558.0,89507.0,0.23917366]
[1740485653094,0.05506364,89558.0,89507.0,0.2090908]
[1740485653371,0.30542729,89556.0,89507.0,0.2090908]
[1740485653573,0.02833392,89555.0,89507.0,0.2090908]
[1740485653789,0.05545522,89552.0,89506.0,0.09042051]
[1740485653921,0.05594027,89550.0,89506.0,0.09042051]
[1740485654363,0.05545522,89552.0,89506.0,0.09042051]
[1740485654809,0.05545522,89552.0,89507.0,4e-05]
[1740485655047,0.14134142,89553.0,89507.0,4e-05]
[1740485655048,0.01752863,89541.0,89507.0,4e-05]
[1740485655297,0.2560854,89541.0,89507.0,4e-05]
[1740485657540,0.2560854,89541.0,89515.0,0.09042051]
[1740485658721,0.23855677,89541.0,89507.0,4e-05]
[1740485658900,0.02385568,89540.0,89507.0,4e-05]
[1740485659514,0.02385568,89540.0,89515.0,0.09042051]
[1740485659714,0.02385568,89540.0,89517.0,0.0496]
[1740485660603,0.07237982,89552.0,89517.0,0.0496]
[1740485660604,0.45955677,89579.0,89517.0,0.0496]
[1740485660803,0.05545727,89564.0,89517.0,0.0496]
[1740485661282,0.077,89567.0,89517.0,0.14002051]
[1740485661436,0.23855677,89566.0,89517.0,0.14002051]
[1740485662113,0.23855677,89566.0,89523.0,0.1]
[1740485662872,0.0008487,89557.0,89523.0,0.1]
[1740485663101,0.0008487,89557.0,89518.0,0.1]
[1740485663310,0.0008487,89557.0,89523.0,0.1]
[1740485663885,0.03498725,89566.0,89523.0,0.3090908]
[1740485664612,0.05593083,89565.0,89523.0,0.3090908]
[1740485665025,0.05593083,89565.0,89523.0,0.2090908]
[1740485665233,0.05562898,89558.0,89496.0,0.1]
[1740485665448,0.0175256,89559.0,89453.0,0.1]
[1740485665449,0.1044011,89556.0,89497.0,0.19042051]
[1740485665651,0.06803216,89555.0,89497.0,0.19042051]
[1740485665806,0.05567505,89554.0,89497.0,0.19042051]
[1740485666006,0.05591896,89552.0,89497.0,0.19042051]
[1740485666379,0.01752968,89541.0,89497.0,0.19042051]
[1740485666734,0.3279,89540.0,89497.0,0.19042051]
[1740485667288,0.05595321,89539.0,89497.0,0.19042051]
[1740485667523,0.3279,89540.0,89497.0,0.19042051]
[1740485667891,0.01752981,89532.0,89497.0,0.19042051]
[1740485668041,0.01752981,89532.0,89508.0,0.19042051]
[1740485668219,0.3279,89540.0,89513.0,0.0488]
[1740485668420,0.3279,89540.0,89508.0,0.19042051]
[1740485669028,0.3279,89540.0,89508.0,0.09042051]
[1740485669229,0.03454285,89539.0,89508.0,0.19042051]
[1740485671515,0.05545747,89538.0,89508.0,0.19042051]
[1740485671760,0.03454285,89539.0,89508.0,0.19042051]
[1740485672253,0.36244285,89539.0,89508.0,0.19042051]
[1740485675119,0.36244285,89539.0,89508.0,0.19211851]
[1740485675310,0.04177517,89538.0,89508.0,0.19211851]
[1740485675779,0.29177517,89538.0,89508.0,0.101698]
[1740485675974,0.29177517,89538.0,89508.0,0.001698]
[1740485676175,0.3269,89537.0,89508.0,0.001698]
[1740485676652,0.131972,89537.0,89508.0,0.001698]
[1740485676858,0.07524962,89536.0,89508.0,0.001698]
[1740485677244,0.01752936,89531.0,89508.0,0.001698]
[1740485677925,0.01752936,89531.0,89501.0,0.0452354]
[1740485678124,0.01752936,89531.0,89490.0,0.0756]
[1740485678125,0.0465,89529.0,89490.0,0.0756]
[1740485678343,0.0465,89529.0,89495.0,0.1]
[1740485678942,0.0465,89529.0,89496.0,0.1]
[1740485680394,0.0535,89529.0,89496.0,0.1]
[1740485680983,0.0465,89529.0,89496.0,0.1]
[1740485681177,0.25,89527.0,89496.0,0.101]
[1740485681784,0.3279,89526.0,89482.0,0.0463]
[1740485681995,0.0806,89524.0,89496.0,0.001]
[1740485682194,0.5544,89523.0,89496.0,0.001]
[1740485682397,0.08832851,89522.0,89496.0,0.001]
[1740485682998,0.01753243,89516.0,89496.0,0.001]
[1740485683203,0.08832851,89522.0,89496.0,0.001]
[1740485683422,0.08832851,89522.0,89481.0,0.09042051]
[1740485684088,0.08832851,89522.0,89472.0,0.17211491]
[1740485684089,0.21951365,89521.0,89472.0,0.17211491]
[1740485684239,0.30159422,89520.0,89472.0,0.17211491]
[1740485684449,0.01493106,89519.0,89472.0,0.17211491]
[1740485684648,0.03276952,89519.0,89473.0,0.1]
[1740485684851,0.30159422,89520.0,89473.0,0.1]
[1740485685230,0.0743,89519.0,89473.0,0.1]
[1740485685432,0.30413044,89518.0,89476.0,0.02738067]
[1740485686204,0.01753327,89508.0,89481.0,0.09042051]
[1740485686317,0.25,89507.0,89481.0,0.09042051]
[1740485686741,0.33459112,89508.0,89481.0,0.09042051]
[1740485687020,0.3279,89508.0,89481.0,0.09042051]
[1740485687219,0.03279,89507.0,89481.0,0.09042051]
[1740485687686,0.03979,89507.0,89481.0,0.09042051]
[1740485688097,0.007,89507.0,89481.0,0.09042051]
[1740485688335,0.3279,89508.0,89482.0,0.0781]
[1740485688541,0.3279,89508.0,89486.0,0.1]
[1740485688669,0.3279,89508.0,89488.0,0.0781]
[1740485688876,0.05413044,89518.0,89488.0,0.0781]
[1740485688877,0.25,89507.0,89488.0,0.0781]
[1740485689096,0.257,89507.0,89493.0,0.1]
[1740485690149,0.007,89507.0,89494.0,0.0803]
[1740485690278,0.05413044,89518.0,89494.0,0.1803]
[1740485690478,0.3279,89537.0,89497.0,0.1]
[1740485690685,0.3279,89537.0,89502.0,0.1]
[1740485690686,0.007,89508.0,89502.0,0.1]
[1740485690885,0.007,89508.0,89505.0,0.1]
[1740485691115,0.3279,89537.0,89507.0,0.1]
[1740485691283,0.3279,89537.0,89513.0,0.0767]
[1740485691489,0.007,89518.0,89513.0,0.0767]
[1740485691925,0.26299102,89520.0,89513.0,0.0767]
[1740485692320,0.25,89520.0,89513.0,0.0737]
[1740485693912,0.11175353,89521.0,89513.0,0.0737]
[1740485694533,0.11175353,89521.0,89507.0,4e-05]
[1740485694825,0.004,89520.0,89513.0,4e-05]
[1740485694968,0.11175353,89521.0,89513.0,4e-05]
[1740485695172,0.01117535,89520.0,89513.0,4e-05]
[1740485696176,0.25,89520.0,89513.0,4e-05]
[1740485697937,0.254,89520.0,89496.0,0.07988]
[1740485698485,0.25,89520.0,89496.0,0.07988]
[1740485698686,0.263,89520.0,89513.0,0.001]
[1740485699096,0.256,89520.0,89513.0,0.001]
[1740485699505,0.263,89520.0,89513.0,0.001]
[1740485700233,0.2638491,89520.0,89513.0,0.001]
[1740485700439,0.2578491,89520.0,89496.0,0.07988]
[1740485700643,0.28780936,89520.0,89496.0,0.07988]
[1740485700887,0.28980936,89520.0,89496.0,0.07988]
[1740485701089,0.29680936,89520.0,89496.0,0.07988]
[1740485701580,0.29180936,89520.0,89496.0,0.07988]
[1740485701783,0.29480936,89520.0,89496.0,0.07988]
[1740485701968,0.04065629,89519.0,89496.0,0.07988]
[1740485702511,0.25,89517.0,89488.0,0.0794]
[1740485702746,0.05558318,89516.0,89479.0,0.0762]
[1740485702927,0.25,89514.0,89482.0,0.1]
[1740485703157,0.30575212,89514.0,89482.0,0.1]
[1740485703306,0.30596688,89512.0,89481.0,0.101698]
[1740485703488,0.2675339,89512.0,89481.0,0.101698]
[1740485703941,0.2675339,89512.0,89482.0,0.09042051]
[1740485704289,0.25,89512.0,89493.0,0.083]
[1740485704561,0.002,89514.0,89499.0,0.1]
[1740485704767,0.004,89512.0,89500.0,0.083]
[1740485705004,0.004,89512.0,89502.0,0.2]
[1740485705229,0.0008491,89520.0,89508.0,0.1]
[1740485705467,0.01126026,89519.0,89500.0,0.083]
[1740485705703,0.007,89512.0,89500.0,0.083]
[1740485706064,0.007,89512.0,89502.0,0.1]
[1740485706269,0.007,89512.0,89508.0,0.1]
[1740485706711,0.012,89512.0,89508.0,0.1]
[1740485706936,0.2508491,89520.0,89508.0,0.1]
[1740485707471,0.28710936,89520.0,89502.0,0.1]
[1740485707785,0.001,89512.0,89508.0,0.001]
[1740485707987,0.001,89512.0,89502.0,0.1]
[1740485708202,0.001,89512.0,89491.0,0.076]
[1740485708416,0.25,89518.0,89502.0,0.1]
[1740485708622,0.07736629,89517.0,89502.0,0.1]
[1740485709242,0.07736629,89517.0,89491.0,0.076]
[1740485709438,0.25,89518.0,89502.0,0.1]
[1740485710074,0.25,89518.0,89502.0,0.10004]
[1740485710687,0.254,89518.0,89502.0,0.10004]
[1740485711148,0.254,89518.0,89502.0,0.08833949]
[1740485711425,0.255,89518.0,89502.0,0.08833949]
[1740485711664,0.2508492,89518.0,89502.0,0.08833949]
[1740485711838,0.02093879,89517.0,89502.0,0.08833949]
[1740485712052,0.0048492,89518.0,89502.0,0.09717344]
[1740485712242,0.25301018,89536.0,89503.0,0.0826]
[1740485712397,0.10044064,89533.0,89505.0,0.08833949]
[1740485712806,0.003,89518.0,89505.0,0.08833949]
[1740485713238,0.003,89518.0,89508.0,0.08833949]
[1740485713872,0.003,89518.0,89512.0,0.08833949]
[1740485714081,0.004,89518.0,89512.0,0.08833949]
[1740485714452,0.003,89518.0,89512.0,0.08833949]
[1740485714661,0.25,89532.0,89512.0,0.08833949]
[1740485715313,0.03679696,89531.0,89512.0,0.08833949]
[1740485715466,0.03679696,89531.0,89513.0,0.08833949]
[1740485715664,0.25,89532.0,89513.0,0.08833949]
[1740485716282,0.255,89532.0,89513.0,0.08833949]
[1740485716983,0.005,89532.0,89523.0,0.08833949]
[1740485717179,0.005,89532.0,89524.0,0.08833949]
[1740485717485,0.00312038,89559.0,89527.0,0.08833949]
[1740485717686,0.00312038,89559.0,89528.0,0.00883395]
[1740485717891,0.00312038,89559.0,89529.0,0.0798]
[1740485718138,0.003,89532.0,89529.0,0.0798]
[1740485718343,0.25,89558.0,89529.0,0.0798]
[1740485718733,0.005,89532.0,89529.0,0.0798]
[1740485719375,0.25,89558.0,89529.0,0.0808]
[1740485719582,0.25,89556.0,89522.0,0.0811]
[1740485719795,0.05591216,89555.0,89522.0,0.0811]
[1740485719980,0.08958859,89555.0,89522.0,0.0811]
[1740485720691,0.25,89556.0,89522.0,0.0811]
[1740485720921,0.25,89556.0,89511.0,0.3235]
[1740485720922,0.3277,89552.0,89514.0,0.0809]
[1740485721094,0.049,89550.0,89529.0,0.003]
[1740485721394,0.30546981,89546.0,89503.0,0.08833949]
[1740485721640,0.30591801,89544.0,89503.0,0.08833949]
[1740485721843,0.25,89540.0,89522.0,0.001]
[1740485721977,0.05569246,89535.0,89522.0,0.001]
[1740485722178,0.05591411,89532.0,89502.0,4e-05]
[1740485722406,0.05581529,89529.0,89502.0,4e-05]
[1740485722603,0.25,89527.0,89502.0,4e-05]
[1740485722805,0.25,89525.0,89503.0,0.001]
[1740485723210,0.25,89523.0,89522.0,0.0026972]
[1740485723413,0.5779,89523.0,89522.0,0.0026972]
[1740485723615,0.64462436,89523.0,89522.0,0.0026972]
[1740485724411,0.5779,89523.0,89522.0,0.0026972]
[1740485724592,0.5779,89523.0,89522.0,0.0016972]
[1740485725124,0.6322931,89523.0,89522.0,0.0016972]
[1740485725485,0.68367892,89523.0,89522.0,0.0016972]
[1740485725692,0.676146,89523.0,89522.0,0.0016972]
[1740485725848,0.74977572,89523.0,89522.0,0.0016972]
[1740485726051,0.80511956,89523.0,89502.0,4e-05]
[1740485726252,0.05525019,89521.0,89502.0,4e-05]
[1740485726456,0.0338529,89522.0,89502.0,4e-05]
[1740485726457,0.08911185,89522.0,89502.0,4e-05]
[1740485726633,0.30505587,89519.0,89502.0,4e-05]
[1740485726837,0.30553493,89517.0,89502.0,4e-05]
[1740485727040,0.25,89517.0,89502.0,4e-05]
[1740485727422,0.05558318,89516.0,89502.0,4e-05]
[1740485727958,0.0553798,89520.0,89502.0,4e-05]
[1740485728162,0.30575212,89514.0,89502.0,4e-05]
[1740485728359,0.30596688,89512.0,89502.0,4e-05]
[1740485728540,0.05596688,89512.0,89502.0,4e-05]
[1740485729856,0.0543931,89511.0,89502.0,4e-05]
[1740485730679,0.25,89510.0,89502.0,4e-05]
[1740485731108,0.3043931,89510.0,89502.0,4e-05]
[1740485731314,0.30524032,89509.0,89502.0,4e-05]
[1740485731518,0.5779,89509.0,89502.0,4e-05]
[1740485731958,0.3053366,89507.0,89502.0,4e-05]
[1740485732163,0.0553366,89507.0,89502.0,4e-05]
[1740485732972,0.05577498,89504.0,89502.0,4e-05]
[1740485733193,0.71236157,89503.0,89502.0,4e-05]
[1740485733332,0.05583412,89501.0,89481.0,0.001698]
[1740485733533,0.048,89498.0,89481.0,0.001698]
[1740485733732,0.03479369,89497.0,89481.0,0.001698]
[1740485734053,0.31312761,89497.0,89481.0,0.001698]
[1740485734252,0.25,89495.0,89481.0,0.001698]
[1740485734457,0.25,89493.0,89481.0,0.001698]
[1740485734820,0.25,89493.0,89472.0,0.0016944]
[1740485734821,0.01166051,89476.0,89472.0,0.0016944]
[1740485734970,0.61789443,89476.0,89472.0,0.0016944]
[1740485735168,0.26166051,89475.0,89472.0,0.0016944]
[1740485735392,0.02833392,89474.0,89472.0,0.0016944]
[1740485735593,0.06312761,89474.0,89434.0,0.09042051]
[1740485735794,0.1005112,89473.0,89434.0,0.09042051]
[1740485736044,0.00972315,89472.0,89434.0,0.09042051]
[1740485736174,0.0194463,89472.0,89434.0,0.09042051]
[1740485736379,0.0738394,89472.0,89434.0,0.09042051]
[1740485736841,0.03479369,89471.0,89434.0,0.09042051]
[1740485737006,0.35061577,89470.0,89434.0,0.09042051]
[1740485737210,0.28479369,89469.0,89434.0,0.09042051]
[1740485737583,0.02833392,89468.0,89434.0,0.09042051]
[1740485737726,0.3043931,89469.0,89443.0,0.09042051]
[1740485737932,0.03517174,89467.0,89443.0,0.09042051]
[1740485738133,0.06248988,89466.0,89443.0,0.09042051]
[1740485738565,0.25,89467.0,89443.0,0.09042051]
[1740485739752,0.03517174,89467.0,89443.0,0.09042051]
[1740485740147,0.007,89466.0,89443.0,0.09042051]
[1740485740326,0.014,89466.0,89443.0,0.09042051]
[1740485740664,0.03517174,89465.0,89443.0,0.09042051]
[1740485740896,0.06010772,89465.0,89443.0,0.09042051]
[1740485741103,0.00601077,89464.0,89434.0,0.09042051]
[1740485741422,0.06350566,89463.0,89434.0,0.09042051]
[1740485741775,0.3691624,89463.0,89434.0,0.09042051]
[1740485742284,0.25,89463.0,89434.0,0.09042051]
[1740485742420,0.28517174,89463.0,89434.0,0.09042051]
[1740485742626,0.3691624,89463.0,89434.0,0.09042051]
[1740485742864,0.40747864,89463.0,89434.0,0.09042051]
[1740485743081,0.3518219,89463.0,89434.0,0.09042051]
[1740485743269,0.28517174,89463.0,89434.0,0.09042051]
[1740485743442,0.014,89464.0,89457.0,0.0756]
[1740485743643,0.007,89464.0,89458.0,0.09042051]
[1740485743846,0.3279,89473.0,89458.0,0.09042051]
[1740485743847,0.007,89463.0,89458.0,0.09042051]
[1740485744063,0.014,89463.0,89458.0,0.09042051]
[1740485744543,0.007,89463.0,89458.0,0.09042051]
[1740485744715,0.25,89472.0,89458.0,0.09042051]
[1740485744874,0.004,89464.0,89458.0,0.09042051]
[1740485745073,0.006,89463.0,89458.0,0.09042051]
[1740485745327,0.006,89463.0,89462.0,0.09003229]
[1740485746240,0.006,89463.0,89462.0,0.0016928]
[1740485746445,0.003,89463.0,89462.0,0.09003229]
[1740485746799,0.25,89481.0,89462.0,0.09003229]
[1740485747023,0.001,89463.0,89462.0,0.09003229]
[1740485747846,0.28504317,89481.0,89462.0,0.09003229]
[1740485748484,0.28504317,89481.0,89463.0,0.08833949]
[1740485748961,0.03504317,89481.0,89463.0,0.08833949]
[1740485749183,0.25,89493.0,89463.0,0.08833949]
[1740485749304,0.05523534,89518.0,89473.0,0.18833949]
[1740485749305,0.3279,89502.0,89473.0,0.18833949]
[1740485749506,0.42833165,89504.0,89477.0,0.08833949]
[1740485749906,0.007,89481.0,89477.0,0.08833949]
[1740485750563,0.005,89481.0,89477.0,0.08833949]
[1740485750970,0.005,89481.0,89480.0,0.08833949]
[1740485751350,0.25,89503.0,89480.0,0.08833949]
[1740485751569,0.0747461,89502.0,89480.0,0.08833949]
[1740485751933,0.0747461,89502.0,89474.0,0.08]
[1740485751934,0.0747461,89502.0,89483.0,0.08833949]
[1740485752341,0.0747461,89502.0,89474.0,0.08]
[1740485752458,0.05550861,89500.0,89480.0,0.001]
[1740485752663,0.3717186,89499.0,89480.0,0.001]
[1740485752991,0.33613002,89499.0,89480.0,0.001]
[1740485753553,0.25,89499.0,89480.0,0.001]
[1740485753755,0.25,89499.0,89475.0,0.08833949]
[1740485754012,0.007,89502.0,89483.0,0.001]
[1740485754373,0.007,89499.0,89475.0,0.08833949]
[1740485754576,0.014,89499.0,89480.0,0.001]
[1740485754800,0.06689,89499.0,89480.0,0.001]
[1740485755319,0.007,89499.0,89483.0,0.001]
[1740485755628,0.25,89503.0,89475.0,0.08833949]
[1740485755762,0.01753511,89500.0,89475.0,0.08833949]
[1740485756169,0.007,89499.0,89475.0,0.08833949]
[1740485756569,0.01753511,89500.0,89475.0,0.08833949]
[1740485756773,0.005,89499.0,89475.0,0.08833949]
[1740485756997,0.04690953,89500.0,89475.0,0.08833949]
[1740485757211,0.03990953,89500.0,89475.0,0.08833949]
[1740485757483,0.005,89499.0,89475.0,0.08833949]
[1740485758213,0.007,89499.0,89475.0,0.08833949]
[1740485758464,0.007,89499.0,89475.0,0.12421549]
[1740485760110,0.012,89499.0,89475.0,0.12421549]
[1740485761092,0.012,89499.0,89475.0,0.08833949]
[1740485761434,0.05543127,89498.0,89475.0,0.08833949]
[1740485761631,0.05543127,89498.0,89474.0,0.08]
[1740485761834,0.25,89497.0,89465.0,0.0763]
[1740485763228,0.006,89498.0,89465.0,0.0763]
[1740485763429,0.0552796,89496.0,89465.0,0.0763]
[1740485763910,0.05513171,89494.0,89465.0,0.0763]
[1740485764133,0.05583702,89492.0,89462.0,0.0016928]
[1740485764261,0.30569315,89490.0,89462.0,0.0016928]
[1740485764641,0.05541357,89488.0,89462.0,0.0016928]
[1740485764847,0.3754,89491.0,89462.0,0.0016928]
[1740485764848,0.05569315,89490.0,89462.0,0.0016928]
[1740485765721,0.30569315,89490.0,89462.0,0.0016928]
[1740485766232,0.01753923,89484.0,89462.0,0.0016928]
[1740485766364,0.03232324,89483.0,89462.0,0.0016928]
[1740485766563,0.01753923,89484.0,89462.0,0.0016928]
[1740485767080,0.25,89482.0,89462.0,0.0016928]
[1740485769842,0.257,89482.0,89462.0,0.0016928]
[1740485770242,0.3274564,89481.0,89462.0,0.0016928]
[1740485770643,0.36646432,89481.0,89462.0,0.0016928]
[1740485771033,0.033644,89480.0,89462.0,0.0016928]
[1740485772690,0.283644,89480.0,89462.0,0.0016928]
[1740485773149,0.287644,89480.0,89462.0,0.0016928]
[1740485773395,0.283644,89480.0,89462.0,0.0016928]
[1740485773602,0.32127311,89479.0,89462.0,0.0016928]
[1740485774707,0.07127311,89479.0,89462.0,0.0016928]
[1740485774925,0.283644,89480.0,89462.0,0.0016928]
[1740485775402,0.290644,89480.0,89462.0,0.0016928]
[1740485775628,0.05528885,89479.0,89462.0,0.0016928]
[1740485776108,0.06228885,89479.0,89462.0,0.0016928]
[1740485776308,0.283644,89480.0,89462.0,0.0016928]
[1740485776309,0.05595427,89476.0,89462.0,0.0016928]
[1740485776800,0.01754158,89473.0,89462.0,0.0016928]
[1740485777033,0.01754158,89473.0,89463.0,0.0791]
[1740485777492,0.01309915,89473.0,89463.0,0.0791]
[1740485777725,0.005,89476.0,89463.0,0.0791]
[1740485778195,0.06954419,89476.0,89463.0,0.0791]
[1740485778860,0.005,89476.0,89463.0,0.0791]
[1740485779102,0.25,89477.0,89463.0,0.0791]
[1740485779300,0.004,89473.0,89463.0,0.0791]
[1740485779511,0.004,89473.0,89464.0,0.0469]
[1740485779799,0.3274564,89478.0,89464.0,0.0469]
[1740485780031,0.012,89476.0,89464.0,0.0469]
[1740485780239,0.007,89476.0,89464.0,0.0469]
[1740485780576,0.007,89476.0,89463.0,0.0791]
[1740485780577,0.004,89473.0,89463.0,0.0791]
[1740485780911,0.007,89476.0,89463.0,0.0791]
[1740485781343,0.25,89477.0,89463.0,0.0791]
[1740485781458,0.006,89473.0,89462.0,0.0016928]
[1740485781901,0.05590617,89472.0,89462.0,0.0016928]
[1740485782081,0.06115066,89473.0,89462.0,0.0016928]
[1740485782278,0.006,89473.0,89462.0,0.0016928]
[1740485782701,0.25,89475.0,89462.0,0.0016928]
[1740485783128,0.007,89476.0,89462.0,0.0016928]
[1740485783336,0.004,89473.0,89462.0,0.0016928]
[1740485783535,0.004,89473.0,89463.0,0.121]
[1740485783752,0.007,89476.0,89471.0,0.1]
[1740485783945,0.007,89476.0,89475.0,0.08433949]
[1740485784344,0.10043165,89483.0,89476.0,0.08433949]
[1740485784543,0.10043165,89483.0,89476.0,0.07633949]
[1740485785367,0.25,89482.0,89476.0,0.07633949]
[1740485786967,0.03512811,89479.0,89472.0,0.0825]
[1740485787204,0.25,89482.0,89472.0,0.0825]
[1740485787376,0.10043165,89483.0,89476.0,0.002]
[1740485787585,0.01753746,89480.0,89476.0,0.003]
[1740485788179,0.10043165,89483.0,89477.0,0.0827]
[1740485788636,0.0001,89490.0,89477.0,0.0827]
[1740485789995,0.0021,89490.0,89463.0,0.046]
[1740485790244,0.0021,89490.0,89464.0,0.09606928]
[1740485790449,0.0021,89490.0,89464.0,0.15763949]
[1740485790825,0.06079315,89490.0,89464.0,0.15763949]
[1740485791238,0.05535952,89489.0,89464.0,0.15763949]
[1740485791599,0.05535952,89489.0,89464.0,0.15863949]
[1740485791850,0.01753771,89484.0,89464.0,0.15863949]
[1740485792000,0.05578163,89483.0,89464.0,0.15763949]
[1740485792561,0.07269176,89484.0,89464.0,0.15763949]
[1740485792975,0.05515405,89484.0,89464.0,0.15763949]
[1740485793313,0.002,89483.0,89464.0,0.15763949]
[1740485793532,0.00664,89482.0,89464.0,0.15763949]
[1740485793758,0.05578163,89483.0,89464.0,0.15763949]
[1740485793935,0.0009494,89490.0,89464.0,0.0813]
[1740485793936,0.19670969,89482.0,89464.0,0.0813]
[1740485794138,0.25,89481.0,89464.0,0.0813]
[1740485795019,0.25,89481.0,89464.0,0.001]
[1740485795230,0.05089975,89480.0,89464.0,0.001]
[1740485795613,0.05089975,89480.0,89455.0,0.0768]
[1740485795814,0.006,89481.0,89464.0,0.001]
[1740485796010,0.012,89481.0,89464.0,0.001]
[1740485796656,0.004,89480.0,89464.0,0.001]
[1740485796863,0.02679975,89479.0,89464.0,0.001]
[1740485797022,0.02679975,89479.0,89455.0,0.0768]
[1740485797221,0.004,89480.0,89455.0,0.0768]
[1740485797423,0.01753943,89475.0,89455.0,0.0768]
[1740485798189,0.01753943,89475.0,89450.0,4e-05]
[1740485798190,0.25,89473.0,89450.0,4e-05]
[1740485798526,0.05862811,89472.0,89450.0,4e-05]
[1740485798734,0.35960292,89471.0,89450.0,4e-05]
[1740485798945,0.03149444,89470.0,89450.0,4e-05]
[1740485799355,0.28149444,89470.0,89450.0,4e-05]
[1740485799687,0.01754325,89466.0,89450.0,4e-05]
[1740485801255,0.25,89473.0,89470.0,0.00545675]
[1740485801459,0.25,89473.0,89450.0,4e-05]
[1740485801460,0.00154325,89466.0,89450.0,4e-05]
[1740485801659,0.07799444,89465.0,89450.0,4e-05]
[1740485801861,0.27590969,89464.0,89450.0,4e-05]
[1740485802065,0.27590969,89464.0,89432.0,0.0016972]
[1740485802066,0.03149444,89463.0,89432.0,0.0016972]
[1740485802262,0.25,89461.0,89432.0,0.0016972]
[1740485802463,0.09727977,89460.0,89432.0,0.0016972]
[1740485802666,0.25,89459.0,89432.0,0.0016972]
[1740485803143,0.28151693,89459.0,89432.0,0.0016972]
[1740485803273,0.25,89459.0,89432.0,0.0016972]
[1740485803678,0.05326234,89458.0,89432.0,0.0016972]
[1740485803928,0.31519574,89457.0,89432.0,0.0016972]
[1740485804128,0.34885474,89457.0,89432.0,0.0016972]
[1740485804348,0.30326234,89456.0,89432.0,0.0016972]
[1740485804480,0.27174541,89456.0,89432.0,0.0016972]